[Event "Titled Tuesday Blitz February 21 Early 2023"]
[White "Jovic, Stanoje"]
[Black "Osuna Vega, Enrique"]
[WhiteFideId "905020"]
[BlackFideId "2219549"]
[WhiteElo "2075"]
[BlackElo "2061"]
[Result "1-0"]
[Round "04"]
[TimeControl "180+2"]
[Date "2023.02.21"]
[WhiteClock "0:00:26"]
[BlackClock "0:00:03"]

1. c4 {[%clk 0:03:00]}  c6 {[%clk 0:02:58]} 2. e4 {[%clk 0:03:00]}  d5 {[%clk 0:02:57]} 3. exd5 {[%clk 0:03:00]}  cxd5 {[%clk 0:02:57]} 4. cxd5 {[%clk 0:03:00]}  Nf6 {[%clk 0:02:57]} 5. Qa4+ {[%clk 0:03:00]}  Nbd7 {[%clk 0:02:52]} 6. Bc4 {[%clk 0:02:59]}  g6 {[%clk 0:02:51]} 7. d3 {[%clk 0:03:00]}  Bg7 {[%clk 0:02:51]} 8. Nc3 {[%clk 0:03:00]}  O-O {[%clk 0:02:51]} 9. Nf3 {[%clk 0:03:00]}  Nb6 {[%clk 0:02:49]} 10. Qb3 {[%clk 0:02:59]}  Bg4 {[%clk 0:02:36]} 11. Ne5 {[%clk 0:02:59]}  Bc8 {[%clk 0:02:27]} 12. O-O {[%clk 0:02:54]}  Nfd7 {[%clk 0:02:27]} 13. Nxd7 {[%clk 0:02:46]}  Bxd7 {[%clk 0:02:25]} 14. Re1 {[%clk 0:02:40]}  Rc8 {[%clk 0:02:11]} 15. Bg5 {[%clk 0:02:39]}  Nxc4 {[%clk 0:02:09]} 16. dxc4 {[%clk 0:02:32]}  Re8 {[%clk 0:02:07]} 17. Ne4 {[%clk 0:02:21]}  h6 {[%clk 0:02:03]} 18. Be3 {[%clk 0:02:08]}  Bf5 {[%clk 0:02:03]} 19. Ng3 {[%clk 0:02:02]}  Bd7 {[%clk 0:01:54]} 20. Bxa7 {[%clk 0:01:52]}  e6 {[%clk 0:01:29]} 21. Bb6 {[%clk 0:01:20]}  Qh4 {[%clk 0:01:27]} 22. Re4 {[%clk 0:01:11]}  Qf6 {[%clk 0:01:22]} 23. Bd4 {[%clk 0:01:10]}  e5 {[%clk 0:01:07]} 24. Bc3 {[%clk 0:01:06]}  Qe7 {[%clk 0:00:54]} 25. Qxb7 {[%clk 0:00:58]}  f5 {[%clk 0:00:48]} 26. Ree1 {[%clk 0:00:54]}  Rb8 {[%clk 0:00:43]} 27. Qa7 {[%clk 0:00:51]}  e4 {[%clk 0:00:40]} 28. Bxg7 {[%clk 0:00:47]}  Qxg7 {[%clk 0:00:41]} 29. b3 {[%clk 0:00:45]}  Ra8 {[%clk 0:00:31]} 30. Qc5 {[%clk 0:00:42]}  Rac8 {[%clk 0:00:28]} 31. Qd6 {[%clk 0:00:40]}  Rcd8 {[%clk 0:00:23]} 32. Qa3 {[%clk 0:00:37]}  Ra8 {[%clk 0:00:22]} 33. Qc1 {[%clk 0:00:36]}  Qd4 {[%clk 0:00:12]} 34. Qxh6 {[%clk 0:00:32]}  Ra6 {[%clk 0:00:05]} 35. Rad1 {[%clk 0:00:29]}  Qb2 {[%clk 0:00:03]} 36. Re2 {[%clk 0:00:26]} 1-0


[Site "https://www.chess.com"]

[Event "Titled Tuesday Blitz February 21 Early 2023"]
[White "Abdilkhair, Abilmansur"]
[Black "Levine, David"]
[WhiteFideId "13716417"]
[BlackFideId "2011611"]
[WhiteElo "2268"]
[BlackElo "2040"]
[Result "1-0"]
[Round "04"]
[TimeControl "180+2"]
[Date "2023.02.21"]
[WhiteClock "0:00:06"]
[BlackClock "0:00:15"]

1. d4 {[%clk 0:03:00]}  d5 {[%clk 0:02:59]} 2. c4 {[%clk 0:03:01]}  dxc4 {[%clk 0:02:58]} 3. e3 {[%clk 0:03:00]}  Nf6 {[%clk 0:02:54]} 4. Bxc4 {[%clk 0:03:00]}  e6 {[%clk 0:02:53]} 5. Nf3 {[%clk 0:03:00]}  c5 {[%clk 0:02:53]} 6. O-O {[%clk 0:02:57]}  Nc6 {[%clk 0:02:52]} 7. Nc3 {[%clk 0:02:53]}  cxd4 {[%clk 0:02:48]} 8. exd4 {[%clk 0:02:54]}  Be7 {[%clk 0:02:48]} 9. Re1 {[%clk 0:02:51]}  O-O {[%clk 0:02:47]} 10. Bg5 {[%clk 0:02:49]}  h6 {[%clk 0:02:46]} 11. Bh4 {[%clk 0:02:47]}  Nh5 {[%clk 0:02:34]} 12. Bxe7 {[%clk 0:02:16]}  Nxe7 {[%clk 0:02:33]} 13. d5 {[%clk 0:02:12]}  Nxd5 {[%clk 0:02:27]} 14. Nxd5 {[%clk 0:02:03]}  exd5 {[%clk 0:02:26]} 15. Qxd5 {[%clk 0:02:04]}  Nf6 {[%clk 0:02:14]} 16. Qxd8 {[%clk 0:01:55]}  Rxd8 {[%clk 0:02:14]} 17. Re7 {[%clk 0:01:56]}  Nd5 {[%clk 0:02:05]} 18. Rd1 {[%clk 0:01:03]}  Be6 {[%clk 0:01:48]} 19. Rxb7 {[%clk 0:01:02]}  Nb6 {[%clk 0:01:42]} 20. Rxd8+ {[%clk 0:00:40]}  Rxd8 {[%clk 0:01:38]} 21. Be2 {[%clk 0:00:35]}  Rc8 {[%clk 0:01:27]} 22. h3 {[%clk 0:00:22]}  Rc2 {[%clk 0:01:18]} 23. Bd3 {[%clk 0:00:20]}  Rc1+ {[%clk 0:01:10]} 24. Kh2 {[%clk 0:00:20]}  g6 {[%clk 0:01:05]} 25. Rxa7 {[%clk 0:00:19]}  Ra1 {[%clk 0:00:59]} 26. a3 {[%clk 0:00:18]}  Bb3 {[%clk 0:00:55]} 27. Nd4 {[%clk 0:00:18]}  Bd5 {[%clk 0:00:54]} 28. Ra6 {[%clk 0:00:15]}  Nc4 {[%clk 0:00:48]} 29. Bxc4 {[%clk 0:00:09]}  Bxc4 {[%clk 0:00:47]} 30. Rb6 {[%clk 0:00:09]}  Rd1 {[%clk 0:00:44]} 31. Nf3 {[%clk 0:00:08]}  Rd3 {[%clk 0:00:38]} 32. Kg3 {[%clk 0:00:08]}  Bd5 {[%clk 0:00:35]} 33. Rd6 {[%clk 0:00:07]}  Kf8 {[%clk 0:00:34]} 34. Rd7 {[%clk 0:00:06]}  Ke8 {[%clk 0:00:33]} 35. Ra7 {[%clk 0:00:06]}  Bxf3 {[%clk 0:00:32]} 36. gxf3 {[%clk 0:00:06]}  f5 {[%clk 0:00:29]} 37. Rb7 {[%clk 0:00:06]}  g5 {[%clk 0:00:27]} 38. a4 {[%clk 0:00:07]}  h5 {[%clk 0:00:26]} 39. a5 {[%clk 0:00:07]}  f4+ {[%clk 0:00:20]} 40. Kg2 {[%clk 0:00:07]}  Rd1 {[%clk 0:00:17]} 41. a6 {[%clk 0:00:07]}  Ra1 {[%clk 0:00:15]} 42. a7 {[%clk 0:00:06]} 1-0


[Site "https://www.chess.com"]

[Event "Titled Tuesday Blitz February 21 Early 2023"]
[White "Goncalves, Davi Sulzbacher"]
[Black "Von Buelow, Georg"]
[WhiteFideId "2154510"]
[BlackFideId "4620658"]
[WhiteElo "2282"]
[BlackElo "2345"]
[Result "0-1"]
[Round "04"]
[TimeControl "180+2"]
[Date "2023.02.21"]
[WhiteClock "0:00:08"]
[BlackClock "0:00:03"]

1. Nf3 {[%clk 0:03:00]}  Nf6 {[%clk 0:02:05]} 2. b3 {[%clk 0:02:59]}  g6 {[%clk 0:02:02]} 3. Bb2 {[%clk 0:02:59]}  Bg7 {[%clk 0:02:03]} 4. g4 {[%clk 0:03:00]}  d5 {[%clk 0:01:57]} 5. g5 {[%clk 0:02:59]}  Nh5 {[%clk 0:01:56]} 6. Bxg7 {[%clk 0:02:59]}  Nxg7 {[%clk 0:01:57]} 7. c4 {[%clk 0:02:55]}  d4 {[%clk 0:01:52]} 8. e3 {[%clk 0:02:54]}  Nc6 {[%clk 0:01:43]} 9. Na3 {[%clk 0:02:48]}  e5 {[%clk 0:01:37]} 10. exd4 {[%clk 0:02:39]}  exd4 {[%clk 0:01:36]} 11. Qe2+ {[%clk 0:02:34]}  Ne6 {[%clk 0:01:26]} 12. O-O-O {[%clk 0:02:27]}  O-O {[%clk 0:01:08]} 13. h4 {[%clk 0:02:27]}  Re8 {[%clk 0:01:01]} 14. Re1 {[%clk 0:02:27]}  Bd7 {[%clk 0:01:00]} 15. Qd1 {[%clk 0:02:22]}  a5 {[%clk 0:00:51]} 16. Nb5 {[%clk 0:02:20]}  a4 {[%clk 0:00:48]} 17. Kb2 {[%clk 0:02:17]}  axb3 {[%clk 0:00:46]} 18. axb3 {[%clk 0:02:16]}  Qe7 {[%clk 0:00:40]} 19. h5 {[%clk 0:02:05]}  Qc5 {[%clk 0:00:26]} 20. hxg6 {[%clk 0:01:57]}  hxg6 {[%clk 0:00:27]} 21. Bd3 {[%clk 0:01:51]}  Nb4 {[%clk 0:00:23]} 22. Bxg6 {[%clk 0:01:01]}  fxg6 {[%clk 0:00:19]} 23. Qb1 {[%clk 0:01:00]}  Kg7 {[%clk 0:00:11]} 24. Rh6 {[%clk 0:01:00]}  Nf8 {[%clk 0:00:12]} 25. Reh1 {[%clk 0:00:57]}  Bxb5 {[%clk 0:00:11]} 26. Rh8 {[%clk 0:00:15]}  Ra2+ {[%clk 0:00:09]} 27. Kc1 {[%clk 0:00:15]}  Bxc4 {[%clk 0:00:06]} 28. Qxg6+ {[%clk 0:00:10]}  Kxg6 {[%clk 0:00:06]} 29. R1h6+ {[%clk 0:00:08]}  Kf5 {[%clk 0:00:05]} 30. Rf6+ {[%clk 0:00:09]}  Ke4 {[%clk 0:00:05]} 31. Rh4+ {[%clk 0:00:09]}  Kd3 {[%clk 0:00:03]} 32. Ne5+ {[%clk 0:00:03]}  Rxe5 {[%clk 0:00:01]} 33. Rf3+ {[%clk 0:00:04]}  Re3 {[%clk 0:00:02]} 34. Rxd4+ {[%clk 0:00:04]}  Qxd4 {[%clk 0:00:02]} 35. Rxe3+ {[%clk 0:00:05]}  Qxe3 {[%clk 0:00:02]} 36. fxe3 {[%clk 0:00:06]}  Bxb3 {[%clk 0:00:02]} 37. Kb1 {[%clk 0:00:06]}  Rxd2 {[%clk 0:00:02]} 38. Kc1 {[%clk 0:00:07]}  Kc3 {[%clk 0:00:02]} 39. Kb1 {[%clk 0:00:08]}  Rd1# {[%clk 0:00:03]} 0-1


[Site "https://www.chess.com"]

[Event "Titled Tuesday Blitz February 21 Early 2023"]
[White "Ziatdinov, Raset"]
[Black "Jiganchine, Roman"]
[WhiteFideId "2015323"]
[BlackFideId "2603667"]
[WhiteElo "2101"]
[BlackElo "2205"]
[Result "0-1"]
[Round "04"]
[TimeControl "180+2"]
[Date "2023.02.21"]
[WhiteClock "0:00:49"]
[BlackClock "0:00:04"]

1. e4 {[%clk 0:03:00]}  c6 {[%clk 0:02:59]} 2. d4 {[%clk 0:03:00]}  d5 {[%clk 0:02:59]} 3. exd5 {[%clk 0:03:01]}  cxd5 {[%clk 0:02:59]} 4. Bd3 {[%clk 0:03:01]}  Nc6 {[%clk 0:02:56]} 5. c3 {[%clk 0:03:01]}  Nf6 {[%clk 0:02:54]} 6. Bf4 {[%clk 0:03:01]}  Bg4 {[%clk 0:02:54]} 7. Qb3 {[%clk 0:03:00]}  Qc8 {[%clk 0:02:54]} 8. Nd2 {[%clk 0:02:59]}  e6 {[%clk 0:02:54]} 9. Ngf3 {[%clk 0:02:59]}  Bh5 {[%clk 0:02:50]} 10. O-O {[%clk 0:02:58]}  Bg6 {[%clk 0:02:50]} 11. Bb5 {[%clk 0:02:52]}  Nd7 {[%clk 0:02:44]} 12. Rfe1 {[%clk 0:02:49]}  Be7 {[%clk 0:02:42]} 13. c4 {[%clk 0:02:35]}  dxc4 {[%clk 0:02:26]} 14. Nxc4 {[%clk 0:02:34]}  O-O {[%clk 0:02:19]} 15. Rac1 {[%clk 0:02:33]}  Nf6 {[%clk 0:02:03]} 16. Nd6 {[%clk 0:02:30]}  Bxd6 {[%clk 0:01:47]} 17. Bxd6 {[%clk 0:02:29]}  Rd8 {[%clk 0:01:40]} 18. Qa3 {[%clk 0:02:28]}  Qd7 {[%clk 0:01:24]} 19. Bg3 {[%clk 0:02:16]}  Qd5 {[%clk 0:01:20]} 20. Bc4 {[%clk 0:02:12]}  Qh5 {[%clk 0:01:06]} 21. Be5 {[%clk 0:01:56]}  Nd5 {[%clk 0:00:37]} 22. h3 {[%clk 0:01:49]}  Bf5 {[%clk 0:00:33]} 23. g4 {[%clk 0:01:42]}  Bxg4 {[%clk 0:00:33]} 24. hxg4 {[%clk 0:01:38]}  Qxg4+ {[%clk 0:00:33]} 25. Bg3 {[%clk 0:01:38]}  Nf4 {[%clk 0:00:20]} 26. Bf1 {[%clk 0:01:35]}  h5 {[%clk 0:00:11]} 27. Rc5 {[%clk 0:01:33]}  h4 {[%clk 0:00:09]} 28. Rg5 {[%clk 0:01:21]}  Nh3+ {[%clk 0:00:08]} 29. Kh1 {[%clk 0:01:13]}  Nxg5 {[%clk 0:00:07]} 30. Nxh4 {[%clk 0:01:06]}  Nxd4 {[%clk 0:00:05]} 31. Bg2 {[%clk 0:01:06]}  Nf5 {[%clk 0:00:04]} 32. Nxf5 {[%clk 0:01:05]}  exf5 {[%clk 0:00:04]} 33. Bxb7 {[%clk 0:01:05]}  Re8 {[%clk 0:00:03]} 34. Rf1 {[%clk 0:01:02]}  Qh5+ {[%clk 0:00:03]} 35. Kg1 {[%clk 0:01:01]}  Rad8 {[%clk 0:00:04]} 36. Bg2 {[%clk 0:00:57]}  f4 {[%clk 0:00:04]} 37. Bxf4 {[%clk 0:00:56]}  Ne6 {[%clk 0:00:04]} 38. Bg3 {[%clk 0:00:55]}  Nd4 {[%clk 0:00:04]} 39. Ra1 {[%clk 0:00:48]}  Ne2+ {[%clk 0:00:04]} 40. Kf1 {[%clk 0:00:49]}  Qb5 {[%clk 0:00:04]} 0-1


[Site "https://www.chess.com"]

[Event "Titled Tuesday Blitz February 21 Early 2023"]
[White "Topalov, Aleksandar"]
[Black "SicilianPanzer"]
[WhiteFideId "925659"]
[WhiteElo "2233"]
[BlackElo "2254"]
[Result "0-1"]
[Round "04"]
[TimeControl "180+2"]
[Date "2023.02.21"]
[WhiteClock "0:00:01"]
[BlackClock "0:00:13"]

1. b3 {[%clk 0:01:43]}  Nf6 {[%clk 0:02:54]} 2. Bb2 {[%clk 0:01:43]}  d6 {[%clk 0:02:53]} 3. Bxf6 {[%clk 0:01:43]}  exf6 {[%clk 0:02:52]} 4. c4 {[%clk 0:01:43]}  b6 {[%clk 0:02:50]} 5. Nc3 {[%clk 0:01:43]}  f5 {[%clk 0:02:50]} 6. e3 {[%clk 0:01:43]}  Bb7 {[%clk 0:02:49]} 7. Nge2 {[%clk 0:01:43]}  g6 {[%clk 0:02:48]} 8. Nf4 {[%clk 0:01:42]}  Bg7 {[%clk 0:02:48]} 9. Be2 {[%clk 0:01:42]}  O-O {[%clk 0:02:44]} 10. O-O {[%clk 0:01:42]}  Nd7 {[%clk 0:02:44]} 11. Rc1 {[%clk 0:01:36]}  Nf6 {[%clk 0:02:34]} 12. d3 {[%clk 0:01:33]}  h5 {[%clk 0:02:16]} 13. Bf3 {[%clk 0:01:32]}  Qc8 {[%clk 0:02:11]} 14. Bxb7 {[%clk 0:01:26]}  Qxb7 {[%clk 0:02:12]} 15. Ncd5 {[%clk 0:01:25]}  Ng4 {[%clk 0:02:06]} 16. h3 {[%clk 0:01:18]}  Ne5 {[%clk 0:02:05]} 17. d4 {[%clk 0:01:19]}  Nd7 {[%clk 0:02:04]} 18. Qf3 {[%clk 0:01:18]}  Qb8 {[%clk 0:01:49]} 19. Ne7+ {[%clk 0:01:14]}  Kh7 {[%clk 0:01:47]} 20. Nxh5 {[%clk 0:01:14]}  Qe8 {[%clk 0:01:33]} 21. Nxf5 {[%clk 0:00:55]}  gxf5 {[%clk 0:01:22]} 22. Qxf5+ {[%clk 0:00:52]}  Kh8 {[%clk 0:01:22]} 23. Nxg7 {[%clk 0:00:36]}  Kxg7 {[%clk 0:01:21]} 24. Qg5+ {[%clk 0:00:37]}  Kh8 {[%clk 0:01:14]} 25. Qh6+ {[%clk 0:00:34]}  Kg8 {[%clk 0:01:14]} 26. e4 {[%clk 0:00:29]}  Qxe4 {[%clk 0:00:48]} 27. Rc3 {[%clk 0:00:28]}  Qh7 {[%clk 0:00:46]} 28. Qg5+ {[%clk 0:00:13]}  Kh8 {[%clk 0:00:45]} 29. Qe7 {[%clk 0:00:13]}  f5 {[%clk 0:00:42]} 30. Qe6 {[%clk 0:00:10]}  Rae8 {[%clk 0:00:39]} 31. Qd5 {[%clk 0:00:10]}  Nf6 {[%clk 0:00:34]} 32. Qf3 {[%clk 0:00:07]}  Ne4 {[%clk 0:00:31]} 33. Rd3 {[%clk 0:00:07]}  f4 {[%clk 0:00:22]} 34. Kh2 {[%clk 0:00:05]}  Ng5 {[%clk 0:00:20]} 35. Qg4 {[%clk 0:00:06]}  Qxd3 {[%clk 0:00:16]} 36. Qxg5 {[%clk 0:00:03]}  f3 {[%clk 0:00:14]} 37. Qh6+ {[%clk 0:00:01]}  Qh7 {[%clk 0:00:13]} 0-1


[Site "https://www.chess.com"]

[Event "Titled Tuesday Blitz February 21 Early 2023"]
[White "Schut, Han"]
[Black "Shtompel, Yuriy"]
[WhiteFideId "1005561"]
[BlackFideId "14168278"]
[WhiteElo "2101"]
[BlackElo "1938"]
[Result "1/2-1/2"]
[Round "04"]
[TimeControl "180+2"]
[Date "2023.02.21"]
[WhiteClock "0:00:59"]
[BlackClock "0:00:31"]

1. e4 {[%clk 0:03:00]}  c5 {[%clk 0:03:00]} 2. Nf3 {[%clk 0:03:00]}  d6 {[%clk 0:03:00]} 3. d4 {[%clk 0:03:00]}  cxd4 {[%clk 0:03:01]} 4. Nxd4 {[%clk 0:03:01]}  Nf6 {[%clk 0:03:01]} 5. f3 {[%clk 0:03:01]}  e5 {[%clk 0:03:01]} 6. Bb5+ {[%clk 0:03:02]}  Bd7 {[%clk 0:02:50]} 7. Bxd7+ {[%clk 0:03:02]}  Qxd7 {[%clk 0:02:51]} 8. Nf5 {[%clk 0:03:02]}  d5 {[%clk 0:02:47]} 9. Bg5 {[%clk 0:03:02]}  dxe4 {[%clk 0:02:45]} 10. Bxf6 {[%clk 0:03:02]}  Qxd1+ {[%clk 0:01:57]} 11. Kxd1 {[%clk 0:03:03]}  gxf6 {[%clk 0:01:47]} 12. fxe4 {[%clk 0:03:04]}  Nc6 {[%clk 0:01:44]} 13. c3 {[%clk 0:03:04]}  O-O-O+ {[%clk 0:01:43]} 14. Kc2 {[%clk 0:03:03]}  Ne7 {[%clk 0:01:42]} 15. Nxe7+ {[%clk 0:02:33]}  Bxe7 {[%clk 0:01:42]} 16. Nd2 {[%clk 0:02:32]}  Rhg8 {[%clk 0:01:41]} 17. g3 {[%clk 0:02:33]}  Bc5 {[%clk 0:01:34]} 18. Rae1 {[%clk 0:02:06]}  b5 {[%clk 0:01:31]} 19. Rhf1 {[%clk 0:02:03]}  Rd6 {[%clk 0:01:30]} 20. Nf3 {[%clk 0:01:59]}  Rgd8 {[%clk 0:01:21]} 21. Re2 {[%clk 0:01:59]}  b4 {[%clk 0:01:02]} 22. Nh4 {[%clk 0:01:59]}  bxc3 {[%clk 0:01:02]} 23. bxc3 {[%clk 0:01:59]}  Rc6 {[%clk 0:01:01]} 24. Nf5 {[%clk 0:01:53]}  Ra6 {[%clk 0:00:54]} 25. Kb2 {[%clk 0:01:41]}  Rd7 {[%clk 0:00:48]} 26. Kb1 {[%clk 0:01:21]}  Rb7+ {[%clk 0:00:39]} 27. Rb2 {[%clk 0:01:20]}  Rd7 {[%clk 0:00:36]} 28. Kc2 {[%clk 0:01:00]}  Ba3 {[%clk 0:00:31]} 29. Rb3 {[%clk 0:01:00]}  Bc5 {[%clk 0:00:30]} 30. Rb2 {[%clk 0:01:00]}  Ba3 {[%clk 0:00:31]} 31. Rb3 {[%clk 0:01:00]}  Bc5 {[%clk 0:00:31]} 32. Rb2 {[%clk 0:00:59]} 1/2-1/2


[Site "https://www.chess.com"]

[Event "Titled Tuesday Blitz February 21 Early 2023"]
[White "Howell, David W L"]
[Black "Bashirli, Saadat"]
[WhiteFideId "410608"]
[BlackFideId "13429990"]
[WhiteElo "2677"]
[BlackElo "1571"]
[Result "1-0"]
[Round "04"]
[TimeControl "180+2"]
[Date "2023.02.21"]
[WhiteClock "0:00:58"]
[BlackClock "0:00:06"]

1. e4 {[%clk 0:03:00]}  e6 {[%clk 0:02:59]} 2. d4 {[%clk 0:03:00]}  d5 {[%clk 0:03:00]} 3. Nc3 {[%clk 0:02:59]}  Bb4 {[%clk 0:02:57]} 4. Ne2 {[%clk 0:02:56]}  dxe4 {[%clk 0:02:55]} 5. a3 {[%clk 0:02:56]}  Bxc3+ {[%clk 0:02:54]} 6. Nxc3 {[%clk 0:02:57]}  Nf6 {[%clk 0:02:55]} 7. g4 {[%clk 0:02:54]}  O-O {[%clk 0:02:52]} 8. g5 {[%clk 0:02:51]}  Nd5 {[%clk 0:02:48]} 9. Nxe4 {[%clk 0:02:51]}  Nc6 {[%clk 0:02:48]} 10. Bg2 {[%clk 0:02:44]}  e5 {[%clk 0:02:44]} 11. dxe5 {[%clk 0:02:28]}  Nxe5 {[%clk 0:02:42]} 12. Qxd5 {[%clk 0:02:21]}  Qxd5 {[%clk 0:02:32]} 13. Nf6+ {[%clk 0:02:21]}  gxf6 {[%clk 0:02:32]} 14. Bxd5 {[%clk 0:02:22]}  fxg5 {[%clk 0:02:26]} 15. Bxg5 {[%clk 0:02:20]}  c6 {[%clk 0:02:20]} 16. Be4 {[%clk 0:01:54]}  Ng6 {[%clk 0:02:16]} 17. O-O-O {[%clk 0:01:51]}  Be6 {[%clk 0:02:09]} 18. h4 {[%clk 0:01:38]}  f6 {[%clk 0:01:57]} 19. Bh6 {[%clk 0:01:31]}  Rf7 {[%clk 0:01:29]} 20. Rhg1 {[%clk 0:01:19]}  f5 {[%clk 0:01:23]} 21. Bh1 {[%clk 0:01:06]}  Kh8 {[%clk 0:00:50]} 22. Bd2 {[%clk 0:01:04]}  Bd5 {[%clk 0:00:08]} 23. Bc3+ {[%clk 0:01:02]}  Kg8 {[%clk 0:00:08]} 24. Bxd5 {[%clk 0:00:58]}  cxd5 {[%clk 0:00:09]} 25. h5 {[%clk 0:00:59]}  Re8 {[%clk 0:00:04]} 26. hxg6 {[%clk 0:00:57]}  hxg6 {[%clk 0:00:05]} 27. Rxg6+ {[%clk 0:00:58]}  Kf8 {[%clk 0:00:06]} 28. Bb4+ {[%clk 0:00:58]} 1-0


[Site "https://www.chess.com"]

[Event "Titled Tuesday Blitz February 21 Early 2023"]
[White "Sabar, Ethmane Daouda"]
[Black "Fries-Nielsen, Jens Ove"]
[WhiteFideId "19600097"]
[BlackFideId "1400142"]
[WhiteElo "2040"]
[BlackElo "2377"]
[Result "1/2-1/2"]
[Round "04"]
[TimeControl "180+2"]
[Date "2023.02.21"]
[WhiteClock "0:00:02"]
[BlackClock "0:00:17"]

1. b3 {[%clk 0:03:00]}  b6 {[%clk 0:01:21]} 2. Bb2 {[%clk 0:03:01]}  Bb7 {[%clk 0:01:21]} 3. e3 {[%clk 0:03:01]}  d6 {[%clk 0:01:22]} 4. f4 {[%clk 0:03:02]}  Nd7 {[%clk 0:01:22]} 5. Nf3 {[%clk 0:03:02]}  e5 {[%clk 0:01:23]} 6. fxe5 {[%clk 0:03:02]}  dxe5 {[%clk 0:01:23]} 7. d3 {[%clk 0:02:24]}  Bb4+ {[%clk 0:01:21]} 8. Nbd2 {[%clk 0:02:21]}  Qe7 {[%clk 0:01:21]} 9. Qe2 {[%clk 0:02:18]}  Ba3 {[%clk 0:01:18]} 10. Bxa3 {[%clk 0:02:06]}  Qxa3 {[%clk 0:01:18]} 11. g3 {[%clk 0:02:04]}  Ngf6 {[%clk 0:01:16]} 12. Bg2 {[%clk 0:02:03]}  O-O {[%clk 0:01:16]} 13. e4 {[%clk 0:02:03]}  Qc5 {[%clk 0:01:16]} 14. Nc4 {[%clk 0:02:00]}  b5 {[%clk 0:01:15]} 15. Ne3 {[%clk 0:02:00]}  a5 {[%clk 0:01:12]} 16. a4 {[%clk 0:01:50]}  c6 {[%clk 0:01:05]} 17. axb5 {[%clk 0:01:47]}  cxb5 {[%clk 0:01:05]} 18. h3 {[%clk 0:01:48]}  Qb4+ {[%clk 0:01:03]} 19. Qd2 {[%clk 0:01:43]}  Rfc8 {[%clk 0:01:03]} 20. Qxb4 {[%clk 0:01:42]}  axb4 {[%clk 0:01:03]} 21. Rxa8 {[%clk 0:01:31]}  Rxa8 {[%clk 0:01:04]} 22. Kd2 {[%clk 0:01:29]}  Ra2 {[%clk 0:01:02]} 23. Nf5 {[%clk 0:01:24]}  Kf8 {[%clk 0:00:49]} 24. Nd6 {[%clk 0:01:23]}  Bc6 {[%clk 0:00:49]} 25. Ng5 {[%clk 0:00:59]}  Nc5 {[%clk 0:00:40]} 26. Rb1 {[%clk 0:00:54]}  Be8 {[%clk 0:00:39]} 27. Nf3 {[%clk 0:00:44]}  Nfd7 {[%clk 0:00:39]} 28. h4 {[%clk 0:00:37]}  f6 {[%clk 0:00:39]} 29. Bh3 {[%clk 0:00:36]}  Bh5 {[%clk 0:00:38]} 30. g4 {[%clk 0:00:33]}  Bf7 {[%clk 0:00:37]} 31. Nxf7 {[%clk 0:00:31]}  Kxf7 {[%clk 0:00:37]} 32. g5 {[%clk 0:00:32]}  Nf8 {[%clk 0:00:34]} 33. gxf6 {[%clk 0:00:29]}  gxf6 {[%clk 0:00:34]} 34. Bf5 {[%clk 0:00:26]}  h6 {[%clk 0:00:33]} 35. h5 {[%clk 0:00:18]}  Nfe6 {[%clk 0:00:33]} 36. Bxe6+ {[%clk 0:00:15]}  Kxe6 {[%clk 0:00:33]} 37. Kd1 {[%clk 0:00:12]}  f5 {[%clk 0:00:31]} 38. exf5+ {[%clk 0:00:12]}  Kxf5 {[%clk 0:00:31]} 39. Nd2 {[%clk 0:00:13]}  Kg5 {[%clk 0:00:29]} 40. Ne4+ {[%clk 0:00:11]}  Kf4 {[%clk 0:00:29]} 41. Nxc5 {[%clk 0:00:09]}  Kg5 {[%clk 0:00:30]} 42. Ne4+ {[%clk 0:00:10]}  Kxh5 {[%clk 0:00:30]} 43. Kd2 {[%clk 0:00:10]}  Kg6 {[%clk 0:00:30]} 44. Rh1 {[%clk 0:00:11]}  Ra8 {[%clk 0:00:29]} 45. Rg1+ {[%clk 0:00:12]}  Kf5 {[%clk 0:00:28]} 46. Nd6+ {[%clk 0:00:12]}  Kf4 {[%clk 0:00:27]} 47. Nxb5 {[%clk 0:00:13]}  h5 {[%clk 0:00:25]} 48. Nd6 {[%clk 0:00:13]}  h4 {[%clk 0:00:25]} 49. Ne4 {[%clk 0:00:14]}  h3 {[%clk 0:00:25]} 50. Rh1 {[%clk 0:00:12]}  Rh8 {[%clk 0:00:24]} 51. Nf2 {[%clk 0:00:11]}  h2 {[%clk 0:00:23]} 52. Ke2 {[%clk 0:00:09]}  Kg3 {[%clk 0:00:23]} 53. Kf1 {[%clk 0:00:09]}  Rf8 {[%clk 0:00:22]} 54. Rxh2 {[%clk 0:00:06]}  Kxh2 {[%clk 0:00:22]} 55. Ke2 {[%clk 0:00:07]}  Kg3 {[%clk 0:00:22]} 56. Ne4+ {[%clk 0:00:08]}  Kf4 {[%clk 0:00:22]} 57. Nd2 {[%clk 0:00:06]}  Rh8 {[%clk 0:00:21]} 58. Nc4 {[%clk 0:00:07]}  Rh2+ {[%clk 0:00:21]} 59. Kd1 {[%clk 0:00:08]}  e4 {[%clk 0:00:19]} 60. dxe4 {[%clk 0:00:08]}  Kxe4 {[%clk 0:00:20]} 61. Na5 {[%clk 0:00:07]}  Ke3 {[%clk 0:00:19]} 62. Nc4+ {[%clk 0:00:05]}  Kd4 {[%clk 0:00:19]} 63. Nb2 {[%clk 0:00:02]}  Kc3 {[%clk 0:00:19]} 64. Na4+ {[%clk 0:00:02]}  Kd4 {[%clk 0:00:20]} 65. Nb2 {[%clk 0:00:02]}  Rg2 {[%clk 0:00:20]} 66. Na4 {[%clk 0:00:01]}  Rh2 {[%clk 0:00:17]} 67. Nb2 {[%clk 0:00:02]} 1/2-1/2


[Site "https://www.chess.com"]